[Event "*** SCC Grand Prix: Titled Tuesday Blitz"]
[Site "Chess.com"]
[Date "2020.08.04"]
[Round "5"]
[White "eightbyeightchess"]
[Black "Goryachkina"]
[Result "1-0"]
[WhiteElo "2432"]
[BlackElo "2574"]
[TimeControl "180+1"]
[EndTime "14:40:31 PDT"]
[Termination "eightbyeightchess won by resignation"]

1. e4 {[%clk 0:03:00.9]} 1... e6 {[%clk 0:02:59.7]} 2. d4 {[%clk 0:02:59]} 2...
d5 {[%clk 0:02:59.8]} 3. e5 {[%clk 0:02:59.7]} 3... c5 {[%clk 0:02:59.4]} 4. c3
{[%clk 0:03:00]} 4... Nc6 {[%clk 0:02:59.6]} 5. Nf3 {[%clk 0:03:00.1]} 5... Nge7
{[%clk 0:03:00]} 6. Bd3 {[%clk 0:02:56.4]} 6... cxd4 {[%clk 0:02:55.2]} 7. cxd4
{[%clk 0:02:57.3]} 7... Nf5 {[%clk 0:02:55.5]} 8. Bxf5 {[%clk 0:02:57.4]} 8...
exf5 {[%clk 0:02:55.7]} 9. Bg5 {[%clk 0:02:58]} 9... Qb6 {[%clk 0:02:40.3]} 10.
Nc3 {[%clk 0:02:56]} 10... Be6 {[%clk 0:02:39.1]} 11. O-O {[%clk 0:02:51]} 11...
h6 {[%clk 0:02:38.8]} 12. Be3 {[%clk 0:02:44.1]} 12... Be7 {[%clk 0:02:38]} 13.
Rc1 {[%clk 0:02:35.5]} 13... O-O {[%clk 0:02:36.9]} 14. Na4 {[%clk 0:02:35.7]}
14... Qc7 {[%clk 0:02:29.3]} 15. Nc5 {[%clk 0:02:32.2]} 15... Rac8 {[%clk
0:02:28.2]} 16. b4 {[%clk 0:02:21.9]} 16... Bxc5 {[%clk 0:02:12.8]} 17. Rxc5
{[%clk 0:02:16.1]} 17... Qd7 {[%clk 0:02:12.6]} 18. a3 {[%clk 0:02:13.3]} 18...
Ne7 {[%clk 0:02:09.2]} 19. Qc1 {[%clk 0:02:03.1]} 19... b6 {[%clk 0:02:07.7]}
20. Rxc8 {[%clk 0:01:26.1]} 20... Rxc8 {[%clk 0:02:06.7]} 21. Qd2 {[%clk
0:01:27]} 21... Ng6 {[%clk 0:01:57.7]} 22. Bxh6 {[%clk 0:01:07]} 22... gxh6
{[%clk 0:01:46.6]} 23. Qxh6 {[%clk 0:01:07.9]} 23... Qe7 {[%clk 0:01:30.4]} 24.
Ng5 {[%clk 0:01:03.5]} 24... Nf8 {[%clk 0:01:30]} 25. f4 {[%clk 0:00:53.8]}
25... Rc3 {[%clk 0:01:27.4]} 26. g4 {[%clk 0:00:34.3]} 26... Rxa3 {[%clk
0:01:19.5]} 27. Kh1 {[%clk 0:00:26.9]} 27... Qxb4 {[%clk 0:00:37.5]} 28. gxf5
{[%clk 0:00:11.2]} 28... Bxf5 {[%clk 0:00:36.5]} 29. Rg1 {[%clk 0:00:11.1]}
29... Bg6 {[%clk 0:00:33.9]} 30. f5 {[%clk 0:00:11.5]} 30... Qxd4 {[%clk
0:00:27.7]} 31. fxg6 {[%clk 0:00:11.6]} 31... fxg6 {[%clk 0:00:26]} 32. Qxf8+
{[%clk 0:00:11.6]} 32... Kxf8 {[%clk 0:00:25.2]} 33. Ne6+ {[%clk 0:00:12.5]}
33... Kf7 {[%clk 0:00:23.7]} 34. Nxd4 {[%clk 0:00:13.4]} 34... Re3 {[%clk
0:00:23.5]} 35. e6+ {[%clk 0:00:12.1]} 35... Ke7 {[%clk 0:00:17.2]} 36. Rxg6
{[%clk 0:00:11.7]} 36... Re4 {[%clk 0:00:16.9]} 37. Nf5+ {[%clk 0:00:12]} 37...
Kf8 {[%clk 0:00:16.2]} 38. e7+ {[%clk 0:00:09.8]} 38... Kf7 {[%clk 0:00:15.9]}
39. Rg7+ {[%clk 0:00:10.2]} 39... Kf6 {[%clk 0:00:16.3]} 40. Rg8 {[%clk
0:00:10.2]} 40... Re1+ {[%clk 0:00:12.8]} 41. Kg2 {[%clk 0:00:10.1]} 41... Re2+
{[%clk 0:00:13.1]} 42. Kf3 {[%clk 0:00:09.9]} 1-0

[Event "*** SCC Grand Prix: Titled Tuesday Blitz"]
[Site "Chess.com"]
[Date "2020.08.04"]
[Round "5"]
[White "Isajevsky_Anton"]
[Black "saisree"]
[Result "1-0"]
[WhiteElo "2586"]
[BlackElo "2411"]
[TimeControl "180+1"]
[EndTime "14:40:32 PDT"]
[Termination "Isajevsky_Anton won on time"]

1. c4 {[%clk 0:03:00.9]} 1... Nf6 {[%clk 0:02:55.8]} 2. Nc3 {[%clk 0:03:00]}
2... g6 {[%clk 0:02:51.4]} 3. g3 {[%clk 0:02:59.6]} 3... Bg7 {[%clk 0:02:51.3]}
4. Bg2 {[%clk 0:02:59.5]} 4... O-O {[%clk 0:02:51.3]} 5. e4 {[%clk 0:02:58.8]}
5... e5 {[%clk 0:02:45.4]} 6. Nge2 {[%clk 0:02:53.2]} 6... Nc6 {[%clk
0:02:37.9]} 7. O-O {[%clk 0:02:52.5]} 7... Nd4 {[%clk 0:02:32.5]} 8. d3 {[%clk
0:02:49.9]} 8... d6 {[%clk 0:02:27.1]} 9. h3 {[%clk 0:02:48.8]} 9... c5 {[%clk
0:02:23.4]} 10. Rb1 {[%clk 0:02:42.7]} 10... h6 {[%clk 0:02:18.2]} 11. a3 {[%clk
0:02:39.9]} 11... Bd7 {[%clk 0:02:08.2]} 12. b4 {[%clk 0:02:39.4]} 12... b6
{[%clk 0:02:08.8]} 13. Kh2 {[%clk 0:02:37]} 13... Rb8 {[%clk 0:02:07.1]} 14. f4
{[%clk 0:02:34.9]} 14... Ne8 {[%clk 0:02:03.6]} 15. Be3 {[%clk 0:02:23.2]} 15...
f5 {[%clk 0:01:54.9]} 16. Qd2 {[%clk 0:02:21.5]} 16... Kh7 {[%clk 0:01:54]} 17.
fxe5 {[%clk 0:02:16.6]} 17... dxe5 {[%clk 0:01:52.9]} 18. Nd5 {[%clk 0:02:06.7]}
18... Nd6 {[%clk 0:01:45.1]} 19. Nec3 {[%clk 0:02:03.4]} 19... Be6 {[%clk
0:01:22.5]} 20. exf5 {[%clk 0:01:44.5]} 20... N6xf5 {[%clk 0:01:18.3]} 21. bxc5
{[%clk 0:01:38]} 21... bxc5 {[%clk 0:01:16.4]} 22. Rxb8 {[%clk 0:01:37.4]} 22...
Qxb8 {[%clk 0:01:16.3]} 23. Rb1 {[%clk 0:01:37.9]} 23... Qc8 {[%clk 0:01:11]}
24. Ne4 {[%clk 0:01:21.5]} 24... Nxe3 {[%clk 0:01:06.2]} 25. Qxe3 {[%clk
0:01:20.8]} 25... Bf5 {[%clk 0:00:22.5]} 26. Nd6 {[%clk 0:01:05.3]} 26... Qd7
{[%clk 0:00:20.2]} 27. Nxf5 {[%clk 0:01:05]} 27... gxf5 {[%clk 0:00:20]} 28. Rb7
{[%clk 0:01:03.1]} 28... Qd6 {[%clk 0:00:11.1]} 29. Rxa7 {[%clk 0:00:50.4]}
29... f4 {[%clk 0:00:11.1]} 30. Qe4+ {[%clk 0:00:45.5]} 30... Kh8 {[%clk
0:00:11.1]} 31. Ne7 {[%clk 0:00:40.4]} 31... fxg3+ {[%clk 0:00:03.5]} 32. Kxg3
{[%clk 0:00:34.5]} 32... Ne2+ {[%clk 0:00:02]} 33. Kh2 {[%clk 0:00:24.7]} 33...
Nf4 {[%clk 0:00:01.9]} 34. Nf5 {[%clk 0:00:21.1]} 34... Qxd3 {[%clk 0:00:01.8]}
35. Qxd3 {[%clk 0:00:19.9]} 35... Nxd3 {[%clk 0:00:02.5]} 36. Nxg7 {[%clk
0:00:20.2]} 36... Nf4 {[%clk 0:00:02.8]} 37. Be4 {[%clk 0:00:18.6]} 37... Rd8
{[%clk 0:00:02.6]} 38. Nf5 {[%clk 0:00:18.3]} 38... Rd2+ {[%clk 0:00:03]} 39.
Kg3 {[%clk 0:00:18.4]} 39... Ra2 {[%clk 0:00:02]} 40. Nxh6 {[%clk 0:00:17.8]}
1-0

[Event "*** SCC Grand Prix: Titled Tuesday Blitz"]
[Site "Chess.com"]
[Date "2020.08.04"]
[Round "5"]
[White "ChessWarrior7197"]
[Black "JonahWillow"]
[Result "1-0"]
[WhiteElo "2880"]
[BlackElo "2679"]
[TimeControl "180+1"]
[EndTime "14:40:33 PDT"]
[Termination "ChessWarrior7197 won on time"]

1. e4 {[%clk 0:03:00.9]} 1... c5 {[%clk 0:02:59.7]} 2. Nf3 {[%clk 0:03:00.5]}
2... Nc6 {[%clk 0:02:59.9]} 3. Bb5 {[%clk 0:03:00.1]} 3... g6 {[%clk 0:02:59.9]}
4. Bxc6 {[%clk 0:03:00.6]} 4... dxc6 {[%clk 0:03:00.8]} 5. d3 {[%clk 0:03:00.8]}
5... Bg7 {[%clk 0:03:00.2]} 6. h3 {[%clk 0:03:01.4]} 6... e5 {[%clk 0:02:58.5]}
7. Nc3 {[%clk 0:03:00.9]} 7... Ne7 {[%clk 0:02:57.5]} 8. Be3 {[%clk 0:03:01.1]}
8... b6 {[%clk 0:02:56.3]} 9. Qd2 {[%clk 0:03:01.6]} 9... h6 {[%clk 0:02:48.7]}
10. O-O {[%clk 0:03:01.1]} 10... g5 {[%clk 0:02:25.7]} 11. Ne2 {[%clk
0:02:57.5]} 11... Ng6 {[%clk 0:02:25]} 12. Ng3 {[%clk 0:02:57.1]} 12... Nf4
{[%clk 0:02:22.3]} 13. Nh2 {[%clk 0:02:36.8]} 13... O-O {[%clk 0:02:16.7]} 14.
a3 {[%clk 0:02:35.3]} 14... a5 {[%clk 0:02:11.1]} 15. b4 {[%clk 0:02:34.1]}
15... cxb4 {[%clk 0:02:03.2]} 16. axb4 {[%clk 0:02:35]} 16... a4 {[%clk
0:01:55.7]} 17. Nf3 {[%clk 0:02:31]} 17... Be6 {[%clk 0:01:50.4]} 18. Rfd1
{[%clk 0:02:20.8]} 18... Qd7 {[%clk 0:01:15.4]} 19. d4 {[%clk 0:02:02.7]} 19...
Bxh3 {[%clk 0:01:00.2]} 20. gxh3 {[%clk 0:02:02.3]} 20... Qxh3 {[%clk
0:01:01.1]} 21. Ne1 {[%clk 0:02:02.6]} 21... Rad8 {[%clk 0:00:52.3]} 22. Rxa4
{[%clk 0:01:35.8]} 22... h5 {[%clk 0:00:50.6]} 23. c3 {[%clk 0:00:56.3]} 23...
h4 {[%clk 0:00:47.5]} 24. Bxf4 {[%clk 0:00:56.1]} 24... gxf4 {[%clk 0:00:41]}
25. Nf5 {[%clk 0:00:54.6]} 25... Kh7 {[%clk 0:00:24.2]} 26. f3 {[%clk
0:00:53.6]} 26... Rg8 {[%clk 0:00:22.1]} 27. Qf2 {[%clk 0:00:28.6]} 27... Bf6+
{[%clk 0:00:17.2]} 28. Ng2 {[%clk 0:00:28.2]} 28... Rxg2+ {[%clk 0:00:11.6]} 29.
Qxg2 {[%clk 0:00:29.1]} 29... Rg8 {[%clk 0:00:12.4]} 30. Qxg8+ {[%clk
0:00:29.5]} 30... Kxg8 {[%clk 0:00:13.2]} 31. Rd3 {[%clk 0:00:29.6]} 31... b5
{[%clk 0:00:06.3]} 32. Ra2 {[%clk 0:00:29.2]} 32... exd4 {[%clk 0:00:04.5]} 33.
cxd4 {[%clk 0:00:29.3]} 33... Bxd4+ {[%clk 0:00:05.4]} 34. Nxd4 {[%clk
0:00:27.1]} 34... Qd7 {[%clk 0:00:04.8]} 35. Rad2 {[%clk 0:00:23.8]} 35... h3
{[%clk 0:00:03.1]} 36. Nf5 {[%clk 0:00:22.7]} 36... Qe6 {[%clk 0:00:03.2]} 37.
Kh2 {[%clk 0:00:22.7]} 37... Qg6 {[%clk 0:00:02.1]} 38. Kxh3 {[%clk 0:00:20.2]}
38... Qh5+ {[%clk 0:00:01.5]} 39. Nh4 {[%clk 0:00:20.5]} 1-0

[Event "*** SCC Grand Prix: Titled Tuesday Blitz"]
[Site "Chess.com"]
[Date "2020.08.04"]
[Round "5"]
[White "Jospem"]
[Black "bascheyaro"]
[Result "1-0"]
[WhiteElo "2927"]
[BlackElo "2704"]
[TimeControl "180+1"]
[EndTime "14:40:35 PDT"]
[Termination "Jospem won by resignation"]

1. e4 {[%clk 0:03:00.9]} 1... e6 {[%clk 0:02:59.3]} 2. d4 {[%clk 0:03:00]} 2...
d5 {[%clk 0:02:59.5]} 3. Nc3 {[%clk 0:03:00.8]} 3... Bb4 {[%clk 0:02:59.2]} 4.
e5 {[%clk 0:03:01.1]} 4... Ne7 {[%clk 0:02:59.5]} 5. a3 {[%clk 0:03:01.4]} 5...
Bxc3+ {[%clk 0:03:00]} 6. bxc3 {[%clk 0:03:02.3]} 6... b6 {[%clk 0:03:00.8]} 7.
h4 {[%clk 0:03:02.3]} 7... Ba6 {[%clk 0:02:59.8]} 8. Ne2 {[%clk 0:03:00.3]} 8...
c5 {[%clk 0:02:59]} 9. h5 {[%clk 0:02:59]} 9... h6 {[%clk 0:02:58.9]} 10. Ng3
{[%clk 0:02:49.6]} 10... Bxf1 {[%clk 0:02:58]} 11. Kxf1 {[%clk 0:02:49.8]} 11...
cxd4 {[%clk 0:02:51.9]} 12. cxd4 {[%clk 0:02:49.1]} 12... Qc7 {[%clk 0:02:51.9]}
13. Rh3 {[%clk 0:02:43.7]} 13... Qc4+ {[%clk 0:02:46.9]} 14. Kg1 {[%clk
0:02:42.8]} 14... Nbc6 {[%clk 0:02:47.2]} 15. Be3 {[%clk 0:02:31.7]} 15... O-O
{[%clk 0:02:06.1]} 16. Rc1 {[%clk 0:02:11.2]} 16... Kh8 {[%clk 0:02:02.7]} 17.
Kh2 {[%clk 0:02:01.4]} 17... f6 {[%clk 0:01:56.6]} 18. exf6 {[%clk 0:01:52.8]}
18... Rxf6 {[%clk 0:01:56.4]} 19. Qd2 {[%clk 0:01:50.5]} 19... Raf8 {[%clk
0:01:52.5]} 20. f3 {[%clk 0:01:48.3]} 20... Qa4 {[%clk 0:01:15.3]} 21. Qd3
{[%clk 0:01:42.8]} 21... Na5 {[%clk 0:01:11.8]} 22. Bd2 {[%clk 0:01:41.9]} 22...
Nf5 {[%clk 0:01:06.4]} 23. Nxf5 {[%clk 0:01:39.6]} 23... Rxf5 {[%clk 0:01:06.8]}
24. Re1 {[%clk 0:01:35.7]} 24... Qc6 {[%clk 0:01:04.7]} 25. Bxa5 {[%clk
0:01:20]} 25... bxa5 {[%clk 0:01:05.6]} 26. Re3 {[%clk 0:00:59.4]} 26... Rf4
{[%clk 0:00:53.1]} 27. c3 {[%clk 0:00:57]} 27... R4f6 {[%clk 0:00:47.1]} 28. Rg3
{[%clk 0:00:53.3]} 28... Qd6 {[%clk 0:00:46.1]} 29. Re5 {[%clk 0:00:24.9]} 29...
Rf5 {[%clk 0:00:37.8]} 30. f4 {[%clk 0:00:16.5]} 30... Rxf4 {[%clk 0:00:36.6]}
31. Qg6 {[%clk 0:00:16.2]} 31... Qc7 {[%clk 0:00:11.7]} 32. Qxe6 {[%clk
0:00:10.5]} 32... R4f6 {[%clk 0:00:11.8]} 33. Qxd5 {[%clk 0:00:09.8]} 33... a6
{[%clk 0:00:08.1]} 34. Qc5 {[%clk 0:00:10]} 34... Qd7 {[%clk 0:00:07.7]} 35. Qe7
{[%clk 0:00:07.3]} 35... Qxe7 {[%clk 0:00:06.7]} 36. Rxe7 {[%clk 0:00:08.2]}
36... Rf5 {[%clk 0:00:07.3]} 37. Rgxg7 {[%clk 0:00:07.2]} 37... Rxh5+ {[%clk
0:00:07.8]} 38. Kg1 {[%clk 0:00:07.7]} 38... Rhf5 {[%clk 0:00:07.2]} 39. Rh7+
{[%clk 0:00:07.9]} 1-0

[Event "*** SCC Grand Prix: Titled Tuesday Blitz"]
[Site "Chess.com"]
[Date "2020.08.04"]
[Round "5"]
[White "FMJoseHerrera"]
[Black "tptagain"]
[Result "0-1"]
[WhiteElo "2506"]
[BlackElo "2944"]
[TimeControl "180+1"]
[EndTime "14:40:35 PDT"]
[Termination "tptagain won by resignation"]

1. f3 {[%clk 0:02:59.6]} 1... d5 {[%clk 0:02:58.9]} 2. g3 {[%clk 0:02:59.7]}
2... e5 {[%clk 0:02:59]} 3. Kf2 {[%clk 0:03:00.1]} 3... Nf6 {[%clk 0:02:59.2]}
4. Kg2 {[%clk 0:03:00.5]} 4... Nc6 {[%clk 0:02:59.3]} 5. d3 {[%clk 0:02:59.9]}
5... h5 {[%clk 0:02:59.3]} 6. h4 {[%clk 0:02:59.6]} 6... Be7 {[%clk 0:02:59.2]}
7. Nh3 {[%clk 0:02:59.8]} 7... O-O {[%clk 0:02:55.3]} 8. Ng5 {[%clk 0:02:59.6]}
8... Nd4 {[%clk 0:02:49.2]} 9. Nc3 {[%clk 0:02:55.6]} 9... c6 {[%clk 0:02:48.5]}
10. e4 {[%clk 0:02:53.3]} 10... g6 {[%clk 0:02:43.6]} 11. Be2 {[%clk 0:02:45.2]}
11... Nh7 {[%clk 0:02:40.1]} 12. f4 {[%clk 0:02:23.3]} 12... Nxe2 {[%clk
0:02:38.6]} 13. Qxe2 {[%clk 0:02:17.6]} 13... d4 {[%clk 0:02:35.4]} 14. Nd1
{[%clk 0:02:16.2]} 14... Bg4 {[%clk 0:02:33.9]} 15. Qf1 {[%clk 0:02:15.9]} 15...
f5 {[%clk 0:02:31.9]} 16. Ne6 {[%clk 0:02:13.6]} 16... Qd7 {[%clk 0:02:30.2]}
17. Nxf8 {[%clk 0:02:14]} 17... Rxf8 {[%clk 0:02:30.7]} 18. Nf2 {[%clk
0:01:58.6]} 18... fxe4 {[%clk 0:02:24.3]} 19. Nxe4 {[%clk 0:01:58.5]} 19... Nf6
{[%clk 0:02:21.5]} 20. Qe1 {[%clk 0:01:50.7]} 20... Nxe4 {[%clk 0:02:17]} 21.
dxe4 {[%clk 0:01:37.9]} 21... Bd6 {[%clk 0:02:10.7]} 22. Qf2 {[%clk 0:01:22.1]}
22... Qe6 {[%clk 0:02:03.6]} 23. Re1 {[%clk 0:01:18.2]} 23... c5 {[%clk
0:01:53.2]} 24. c3 {[%clk 0:01:16.5]} 24... d3 {[%clk 0:01:41.8]} 25. Be3 {[%clk
0:00:59.5]} 25... Be2 {[%clk 0:01:29.4]} 26. Bxc5 {[%clk 0:00:34]} 26... Bxc5
{[%clk 0:01:22.8]} 27. Qxc5 {[%clk 0:00:34.9]} 27... exf4 {[%clk 0:01:22.8]} 28.
Qd5 {[%clk 0:00:26.7]} 28... f3+ {[%clk 0:01:20.2]} 29. Kf2 {[%clk 0:00:26.4]}
29... Kf7 {[%clk 0:00:40.2]} 30. Rad1 {[%clk 0:00:20.6]} 30... Qxd5 {[%clk
0:00:37.2]} 31. exd5 {[%clk 0:00:21.5]} 31... Kf6 {[%clk 0:00:34.4]} 32. c4
{[%clk 0:00:20.3]} 32... Rc8 {[%clk 0:00:30.8]} 33. b3 {[%clk 0:00:20]} 33...
Kf5 {[%clk 0:00:31.1]} 34. Ke3 {[%clk 0:00:20]} 34... Re8+ {[%clk 0:00:30.8]}
35. Kd2 {[%clk 0:00:19.5]} 35... Kg4 {[%clk 0:00:29.1]} 36. Rg1 {[%clk
0:00:19.2]} 36... f2 {[%clk 0:00:28.8]} 37. Rgf1 {[%clk 0:00:19.2]} 37... Bxf1
{[%clk 0:00:27.3]} 38. Rxf1 {[%clk 0:00:19.2]} 38... Kf3 {[%clk 0:00:27.9]} 39.
d6 {[%clk 0:00:19.4]} 39... Kg2 {[%clk 0:00:27.6]} 40. Rxf2+ {[%clk 0:00:19.4]}
40... Kxf2 {[%clk 0:00:28]} 41. Kxd3 {[%clk 0:00:20.3]} 41... Kxg3 {[%clk
0:00:27.8]} 42. c5 {[%clk 0:00:20.9]} 42... Kxh4 {[%clk 0:00:26.7]} 43. b4
{[%clk 0:00:21.5]} 43... g5 {[%clk 0:00:26]} 44. b5 {[%clk 0:00:21.7]} 44... Rd8
{[%clk 0:00:26.5]} 45. Ke4 {[%clk 0:00:21.5]} 45... g4 {[%clk 0:00:26.9]} 46.
Ke5 {[%clk 0:00:20.7]} 46... g3 {[%clk 0:00:27.2]} 47. c6 {[%clk 0:00:21.3]}
47... bxc6 {[%clk 0:00:27.6]} 48. bxc6 {[%clk 0:00:22.2]} 48... g2 {[%clk
0:00:27.7]} 49. c7 {[%clk 0:00:22.9]} 49... Re8+ {[%clk 0:00:28.1]} 50. Kd5
{[%clk 0:00:18.1]} 50... g1=Q {[%clk 0:00:29]} 51. d7 {[%clk 0:00:19]} 51...
Qd1+ {[%clk 0:00:28.8]} 52. Kc6 {[%clk 0:00:19.3]} 52... Re6+ {[%clk 0:00:29.4]}
53. Kb7 {[%clk 0:00:19.4]} 53... Qxd7 {[%clk 0:00:29.2]} 0-1

[Event "*** SCC Grand Prix: Titled Tuesday Blitz"]
[Site "Chess.com"]
[Date "2020.08.04"]
[Round "5"]
[White "kosya4ok"]
[Black "Bodnar_Mykola"]
[Result "0-1"]
[WhiteElo "2707"]
[BlackElo "2461"]
[TimeControl "180+1"]
[EndTime "14:40:36 PDT"]
[Termination "Bodnar_Mykola won by resignation"]

1. d4 {[%clk 0:03:00.9]} 1... Nf6 {[%clk 0:02:59.2]} 2. c4 {[%clk 0:02:56.1]}
2... e6 {[%clk 0:02:58.2]} 3. Nf3 {[%clk 0:02:55.6]} 3... b6 {[%clk 0:02:55]} 4.
a3 {[%clk 0:02:55.4]} 4... Bb7 {[%clk 0:02:53.9]} 5. Nc3 {[%clk 0:02:55.7]} 5...
d5 {[%clk 0:02:54.4]} 6. cxd5 {[%clk 0:02:56]} 6... Nxd5 {[%clk 0:02:55.3]} 7.
Qc2 {[%clk 0:02:56.3]} 7... Nxc3 {[%clk 0:02:55.4]} 8. bxc3 {[%clk 0:02:57.2]}
8... c5 {[%clk 0:02:55.6]} 9. e4 {[%clk 0:02:54.6]} 9... Nc6 {[%clk 0:02:55.8]}
10. Bd3 {[%clk 0:02:14.4]} 10... Rc8 {[%clk 0:02:53.6]} 11. Qa4 {[%clk
0:02:14.3]} 11... Be7 {[%clk 0:02:41.8]} 12. O-O {[%clk 0:02:03.4]} 12... O-O
{[%clk 0:02:41.8]} 13. Rd1 {[%clk 0:01:59.3]} 13... Qe8 {[%clk 0:02:26.7]} 14.
d5 {[%clk 0:01:53.6]} 14... exd5 {[%clk 0:02:22.3]} 15. exd5 {[%clk 0:01:54.5]}
15... Nd4 {[%clk 0:02:17.9]} 16. Qxa7 {[%clk 0:01:32.7]} 16... Nxf3+ {[%clk
0:02:14.5]} 17. gxf3 {[%clk 0:01:33.6]} 17... Bxd5 {[%clk 0:01:55]} 18. Bxh7+
{[%clk 0:01:18.4]} 18... Kxh7 {[%clk 0:01:55.9]} 19. Rxd5 {[%clk 0:01:18.4]}
19... Bf6 {[%clk 0:01:53.8]} 20. Bf4 {[%clk 0:00:58.9]} 20... Qe2 {[%clk
0:01:46.2]} 21. Qb7 {[%clk 0:00:37.5]} 21... Kg8 {[%clk 0:01:38.7]} 22. Kg2
{[%clk 0:00:35.7]} 22... Bxc3 {[%clk 0:01:35]} 23. Rb1 {[%clk 0:00:30.2]} 23...
Bd4 {[%clk 0:01:31.9]} 24. Bg3 {[%clk 0:00:30.6]} 24... Qa2 {[%clk 0:01:12.2]}
25. Rxb6 {[%clk 0:00:26.3]} 25... Qxa3 {[%clk 0:01:12.2]} 26. Ra6 {[%clk
0:00:23.1]} 26... Qc1 {[%clk 0:01:08.5]} 27. Ra7 {[%clk 0:00:21.6]} 27... Rce8
{[%clk 0:01:03.3]} 28. Rh5 {[%clk 0:00:11.1]} 28... Re1 {[%clk 0:00:58.6]} 29.
Ra8 {[%clk 0:00:10.7]} 29... Rg1+ {[%clk 0:00:57.3]} 30. Kh3 {[%clk 0:00:11.2]}
30... g6 {[%clk 0:00:46.1]} 31. Rxf8+ {[%clk 0:00:09.9]} 31... Kxf8 {[%clk
0:00:46.5]} 32. Qb8+ {[%clk 0:00:10.3]} 32... Ke7 {[%clk 0:00:42]} 33. Rd5
{[%clk 0:00:05.9]} 33... Qh6+ {[%clk 0:00:40.5]} 34. Kg4 {[%clk 0:00:05.2]}
34... f5+ {[%clk 0:00:40.5]} 35. Rxf5 {[%clk 0:00:05.1]} 35... gxf5+ {[%clk
0:00:41.4]} 36. Kxf5 {[%clk 0:00:05.2]} 36... Qe6+ {[%clk 0:00:38.8]} 37. Kg5
{[%clk 0:00:05.4]} 37... Qf6+ {[%clk 0:00:37.6]} 38. Kg4 {[%clk 0:00:05.2]}
38... Qg6+ {[%clk 0:00:37.9]} 39. Kf4 {[%clk 0:00:04.5]} 39... Qd6+ {[%clk
0:00:36]} 40. Qxd6+ {[%clk 0:00:04.9]} 40... Kxd6 {[%clk 0:00:36.9]} 41. Ke4+
{[%clk 0:00:05.6]} 41... Ke6 {[%clk 0:00:36.9]} 42. h4 {[%clk 0:00:06.5]} 42...
Re1+ {[%clk 0:00:36.4]} 43. Kd3 {[%clk 0:00:06.6]} 43... Kd5 {[%clk 0:00:36.7]}
44. h5 {[%clk 0:00:05.9]} 44... c4+ {[%clk 0:00:37.2]} 45. Kd2 {[%clk
0:00:06.5]} 45... Re6 {[%clk 0:00:36.8]} 46. Bf4 {[%clk 0:00:06.5]} 46... Bxf2
{[%clk 0:00:36.6]} 47. h6 {[%clk 0:00:06.8]} 47... Bd4 {[%clk 0:00:37.1]} 48.
Kc2 {[%clk 0:00:07]} 48... Rf6 {[%clk 0:00:37.2]} 49. Bd2 {[%clk 0:00:05.6]}
49... Rxf3 {[%clk 0:00:37.1]} 50. h7 {[%clk 0:00:06]} 50... Rh3 {[%clk
0:00:37.6]} 51. Bf4 {[%clk 0:00:06.3]} 51... Rxh7 {[%clk 0:00:37.1]} 0-1

[Event "*** SCC Grand Prix: Titled Tuesday Blitz"]
[Site "Chess.com"]
[Date "2020.08.04"]
[Round "5"]
[White "RaphCamora"]
[Black "GoltsevDmitry2000"]
[Result "1-0"]
[WhiteElo "2441"]
[BlackElo "2614"]
[TimeControl "180+1"]
[EndTime "14:40:37 PDT"]
[Termination "RaphCamora won by checkmate"]

1. Nf3 {[%clk 0:03:00.9]} 1... d5 {[%clk 0:02:58.5]} 2. g3 {[%clk 0:02:59.4]}
2... c6 {[%clk 0:02:57.7]} 3. Bg2 {[%clk 0:02:58.9]} 3... Bg4 {[%clk 0:02:58.1]}
4. h3 {[%clk 0:02:55.9]} 4... Bh5 {[%clk 0:02:57]} 5. O-O {[%clk 0:02:53.5]}
5... Nd7 {[%clk 0:02:56.6]} 6. d4 {[%clk 0:02:54]} 6... Ngf6 {[%clk 0:02:56.1]}
7. c4 {[%clk 0:02:54.3]} 7... e6 {[%clk 0:02:54.2]} 8. cxd5 {[%clk 0:02:54.2]}
8... exd5 {[%clk 0:02:54.1]} 9. Qb3 {[%clk 0:02:54.7]} 9... Qb6 {[%clk
0:02:53.4]} 10. Qe3+ {[%clk 0:02:55.2]} 10... Be7 {[%clk 0:02:51.4]} 11. Nh4
{[%clk 0:02:55.8]} 11... Bg6 {[%clk 0:02:49.1]} 12. Nc3 {[%clk 0:02:56.4]} 12...
Nf8 {[%clk 0:02:29.4]} 13. f4 {[%clk 0:02:48.9]} 13... h6 {[%clk 0:02:13.2]} 14.
f5 {[%clk 0:02:47.2]} 14... Bh7 {[%clk 0:02:12.8]} 15. b3 {[%clk 0:02:02.5]}
15... Kd7 {[%clk 0:02:05.4]} 16. Na4 {[%clk 0:01:59.8]} 16... Qc7 {[%clk
0:02:01.9]} 17. Nc5+ {[%clk 0:01:32.3]} 17... Bxc5 {[%clk 0:02:01.5]} 18. dxc5
{[%clk 0:01:33.2]} 18... Re8 {[%clk 0:02:00.2]} 19. Qd4 {[%clk 0:01:32.2]} 19...
Rxe2 {[%clk 0:01:57.1]} 20. Bf4 {[%clk 0:01:31.3]} 20... Qa5 {[%clk 0:01:41.3]}
21. b4 {[%clk 0:01:30.2]} 21... Qa3 {[%clk 0:01:40.3]} 22. Rfe1 {[%clk
0:01:29.2]} 22... Qb2 {[%clk 0:01:20.2]} 23. Qxb2 {[%clk 0:00:50.7]} 23... Rxb2
{[%clk 0:01:21.1]} 24. a3 {[%clk 0:00:51.6]} 24... Kd8 {[%clk 0:01:07.4]} 25.
Bd6 {[%clk 0:00:50.7]} 25... N8d7 {[%clk 0:01:04.3]} 26. Re7 {[%clk 0:00:49.7]}
26... Rf8 {[%clk 0:00:54.4]} 27. Rae1 {[%clk 0:00:48.4]} 27... Bg8 {[%clk
0:00:53.9]} 28. g4 {[%clk 0:00:38.3]} 28... Re8 {[%clk 0:00:50.2]} 29. Rxe8+
{[%clk 0:00:36.8]} 29... Nxe8 {[%clk 0:00:51.1]} 30. Be7+ {[%clk 0:00:35]} 30...
Kc8 {[%clk 0:00:48.4]} 31. Bf8 {[%clk 0:00:31.2]} 31... Ndf6 {[%clk 0:00:30.7]}
32. Nf3 {[%clk 0:00:25.1]} 32... Rb3 {[%clk 0:00:18.6]} 33. h4 {[%clk
0:00:25.3]} 33... Rxa3 {[%clk 0:00:16.6]} 34. g5 {[%clk 0:00:25.5]} 34... hxg5
{[%clk 0:00:15.7]} 35. hxg5 {[%clk 0:00:26.4]} 35... Ne4 {[%clk 0:00:16.1]} 36.
Nd2 {[%clk 0:00:26]} 36... Nc7 {[%clk 0:00:06.4]} 37. Bxe4 {[%clk 0:00:23.7]}
37... dxe4 {[%clk 0:00:06.6]} 38. Nxe4 {[%clk 0:00:24.6]} 38... Rd3 {[%clk
0:00:06.1]} 39. Nd6+ {[%clk 0:00:24.2]} 39... Kd8 {[%clk 0:00:06.6]} 40. Bxg7
{[%clk 0:00:23]} 40... Rd5 {[%clk 0:00:04.1]} 41. Bf6+ {[%clk 0:00:22.5]} 41...
Kd7 {[%clk 0:00:04.2]} 42. Re7+ {[%clk 0:00:22.8]} 42... Kd8 {[%clk 0:00:04.7]}
43. Rxf7# {[%clk 0:00:21.8]} 1-0